bitfinex-derivatives/quotes_SOLF0:USTF0_20250527
["timestamp","ask_amount","ask_price","bid_price","bid_amount"]
[1748333404615,210.58,176.19,176.07,5.6775]
[1748333405122,5.6757,176.14,176.11,0.03674431]
[1748333405626,5.71845965,176.15,176.11,0.03674431]
[1748333406122,0.04315965,176.15,176.11,0.03674431]
[1748333406424,5.6761,176.13,176.11,0.03674431]
[1748333407018,0.04315965,176.15,176.11,0.03674431]
[1748333407420,5.71855965,176.15,176.11,0.03674431]
[1748333407722,5.71855965,176.15,176.11,107.83674431]
[1748333407926,0.04315965,176.15,176.11,113.51294431]
[1748333408120,0.04315965,176.15,176.12,1.927]
[1748333408824,5.6746,176.17,176.12,1.927]
[1748333409022,5.6746,176.17,176.13,2.0364]
[1748333410726,5.71152641,176.16,176.13,2.07555035]
[1748333411427,5.6752,176.15,176.13,2.07555035]
[1748333411614,0.03652641,176.16,176.13,2.07555035]
[1748333411819,5.6752,176.15,176.13,2.07555035]
[1748333412121,0.03652641,176.16,176.13,5.035e-05]
[1748333412317,5.6755,176.14,176.13,5.035e-05]
[1748333413616,0.03652641,176.16,176.13,5.035e-05]
[1748333414826,0.03652641,176.16,176.13,5.67585035]
[1748333415021,0.03652641,176.16,176.13,5.035e-05]
[1748333416328,5.71142641,176.16,176.13,5.035e-05]
[1748333418827,0.03652641,176.16,176.13,5.035e-05]
[1748333419426,5.6755,176.14,176.13,5.035e-05]
[1748333420123,5.6753,176.15,176.13,5.035e-05]
[1748333420427,0.03652641,176.16,176.13,5.035e-05]
[1748333421428,0.03652641,176.16,176.13,5.67575035]
[1748333422328,0.03652641,176.16,176.13,5.035e-05]
[1748333422834,0.03652641,176.16,176.15,5.6752]
[1748333425334,0.03652641,176.16,176.14,1.9686]
[1748333426738,0.03652641,176.16,176.14,7.6441]
[1748333427138,0.03652641,176.16,176.14,1.9686]
[1748333428138,5.6734,176.21,176.14,1.9686]
[1748333428441,5.6734,176.21,176.15,1.9954]
[1748333428733,5.6734,176.21,176.17,5.6743]
[1748333429333,5.71506666,176.21,176.17,5.7115996]
[1748333429531,5.6737,176.2,176.17,5.7115996]
[1748333430441,5.6741,176.19,176.17,0.0372996]
[1748333431237,5.6742,176.18,176.17,0.0372996]
[1748333434139,0.04166666,176.21,176.17,0.0372996]
[1748333434545,5.6742,176.18,176.17,0.0372996]
[1748333437843,5.6738,176.2,176.17,0.0372996]
[1748333438046,0.04166666,176.21,176.17,0.0372996]
[1748333438444,5.674,176.19,176.17,0.0372996]
[1748333438950,0.04166666,176.21,176.17,0.0372996]
[1748333439149,5.6742,176.18,176.17,0.0372996]
[1748333440249,0.04166666,176.21,176.17,0.0372996]
[1748333441050,5.674,176.19,176.17,0.0372996]
[1748333441250,0.04166666,176.21,176.17,5.7117996]
[1748333441549,0.04166666,176.21,176.17,0.0372996]
[1748333442151,5.6738,176.2,176.17,0.0372996]
[1748333442447,0.04166666,176.21,176.17,0.0372996]
[1748333443448,7.04571529,176.28,176.17,107.8372996]
[1748333443653,7.04571529,176.28,176.18,3.8196]
[1748333443853,7.04571529,176.28,176.2,5.6734]
[1748333444052,5.6723,176.25,176.2,5.6734]
[1748333444251,7.04571529,176.28,176.18,3.8196]
[1748333444546,5.6732,176.22,176.21,0.0368872]
[1748333447556,5.6726,176.23,176.21,0.0368872]
[1748333448251,5.71256834,176.25,176.21,0.0368872]
[1748333448455,0.04036834,176.25,176.21,0.0368872]
[1748333448753,5.6705,176.3,176.24,5.6721]
[1748333448957,7.04571529,176.32,176.22,2.0612]
[1748333449356,7.04571529,176.32,176.25,5.6717]
[1748333449749,7.04571529,176.32,176.27,0.04110697]
[1748333450560,5.671,176.29,176.27,0.04110697]
[1748333451556,5.671,176.28,176.27,0.04110697]
[1748333452563,197.58,176.33,176.27,0.04110697]
[1748333453456,5.6703,176.31,176.27,0.04110697]
[1748333453656,197.58,176.33,176.27,0.04110697]
[1748333453958,5.6706,176.3,176.27,0.04110697]
[1748333454255,197.58,176.33,176.27,0.04110697]
[1748333454458,1.9218,176.38,176.27,0.04110697]
[1748333454660,1.9218,176.38,176.31,0.04179933]
[1748333455453,7.04571529,176.4,176.31,0.04179933]
[1748333455657,5.6692,176.34,176.31,0.04179933]
[1748333456661,5.6694,176.33,176.31,0.04179933]
[1748333457161,5.6697,176.32,176.31,0.04179933]
[1748333460053,5.04102879,176.34,176.21,109.6922]
[1748333460257,5.04102879,176.34,176.22,2.0612]
[1748333460861,0.03758348,176.3,176.26,0.03804881]
[1748333461262,5.6713,176.27,176.26,0.03804881]
[1748333461471,0.03758348,176.3,176.26,0.03804881]
[1748333461760,5.6708,176.29,176.26,0.03804881]
[1748333461963,0.03758348,176.3,176.26,0.03804881]
[1748333463061,5.6713,176.27,176.26,0.03804881]
[1748333463557,5.6708,176.29,176.26,0.03804881]
[1748333463755,0.03758348,176.3,176.26,0.03804881]
[1748333464263,5.6712,176.28,176.26,0.03804881]
[1748333464863,5.6713,176.27,176.26,0.03804881]
[1748333465359,0.03758348,176.3,176.26,0.03804881]
[1748333465561,5.6708,176.29,176.26,0.03804881]
[1748333466156,0.03758348,176.3,176.26,0.03804881]
[1748333466656,5.70818348,176.3,176.26,0.03804881]
[1748333466863,0.03758348,176.3,176.26,0.03804881]
[1748333467159,5.6713,176.27,176.26,0.03804881]
[1748333467363,200.87758348,176.3,176.19,199.4996]
[1748333467561,200.84,176.3,176.19,199.4996]
[1748333467759,200.84,176.3,176.19,1.9996]
[1748333467960,200.84,176.3,176.19,7.6734]
[1748333468359,0.03609615,176.26,176.23,0.03739876]
[1748333469667,5.6723,176.24,176.23,0.03739876]
[1748333471054,214.57713937,176.24,176.14,0.34268392]
[1748333471258,208.89713937,176.24,176.12,0.34268392]
[1748333471458,5.675,176.16,176.12,0.34268392]
[1748333471657,208.89713937,176.24,176.12,0.34268392]
[1748333472065,5.6746,176.17,176.16,0.03859116]
[1748333472567,5.6743,176.18,176.16,0.03859116]
[1748333476368,0.04188617,176.2,176.16,0.03859116]
[1748333477086,5.6742,176.19,176.16,0.03859116]
[1748333479792,0.04188617,176.2,176.16,0.03859116]
[1748333480993,5.6741,176.19,176.16,0.03859116]
[1748333481891,5.6743,176.18,176.16,0.03859116]
[1748333484893,5.6746,176.17,176.16,0.03859116]
[1748333485195,0.04188617,176.2,176.16,0.03859116]
[1748333485689,5.6745,176.18,176.16,0.03859116]
[1748333486195,0.04188617,176.2,176.16,0.03859116]
[1748333486401,5.6746,176.17,176.16,0.03859116]
[1748333488298,5.6759,176.13,176.09,194.32]
[1748333488993,5.6759,176.13,176.09,199.997]
[1748333489293,5.71389731,176.13,176.09,200.03868038]
[1748333489495,0.03799731,176.13,176.11,5.6763]
[1748333489796,0.03799731,176.13,176.09,194.36168038]
[1748333489994,5.71409731,176.13,176.09,194.36168038]
[1748333490589,0.03799731,176.13,176.09,194.36168038]
[1748333490996,5.6764,176.12,176.09,194.36168038]
[1748333491193,0.03799731,176.13,176.09,194.36168038]
[1748333491998,5.6764,176.12,176.09,194.36168038]
[1748333492399,0.03799731,176.13,176.09,194.36168038]
[1748333492899,5.71399731,176.13,176.09,200.03858038]
[1748333496003,5.6762,176.12,176.09,194.36168038]
[1748333496801,0.03799731,176.13,176.09,194.36168038]
[1748333497701,0.03799731,176.13,176.09,0.04168038]
[1748333498096,5.6765,176.11,176.09,0.04168038]
[1748333499004,5.6768,176.1,176.09,0.04168038]
[1748333499797,0.03799731,176.13,176.09,0.04168038]
[1748333499798,5.6766,176.11,176.09,0.04168038]
[1748333500303,5.6768,176.1,176.09,0.04168038]
[1748333503313,5.6766,176.11,176.09,0.04168038]
[1748333504308,5.6768,176.1,176.09,0.04168038]
[1748333508103,5.6762,176.12,176.09,0.04168038]
[1748333508505,0.03799731,176.13,176.09,0.04168038]
[1748333510113,5.6767,176.11,176.09,0.04168038]
[1748333510301,0.03799731,176.13,176.09,0.04168038]
[1748333510709,5.6768,176.1,176.09,0.04168038]
[1748333512915,5.6766,176.11,176.09,0.04168038]
[1748333513314,0.03799731,176.13,176.09,0.04168038]
[1748333514115,5.6768,176.1,176.09,0.04168038]
[1748333516114,0.03799731,176.13,176.09,0.04168038]
[1748333519717,5.6768,176.1,176.09,0.04168038]
[1748333528725,5.6784,176.05,176.04,2.0036]
[1748333528928,5.6784,176.05,176.03,0.34268392]
[1748333530724,5.7212404,176.06,176.03,0.34268392]
[1748333530926,0.0429404,176.06,176.03,0.34268392]
[1748333531224,5.7211404,176.06,176.03,0.34268392]
[1748333531926,5.6784,176.05,176.03,0.34268392]
[1748333532128,0.0429404,176.06,176.03,0.34268392]
[1748333532822,5.6788,176.04,176.03,0.34268392]
[1748333533828,0.0429404,176.06,176.02,0.03644958]
[1748333533829,5.6791,176.03,176.02,0.03644958]
[1748333536322,5.6791,176.03,176.02,4.958e-05]
[1748333536526,5.6794,176.02,176.01,0.34268392]
[1748333537026,169.4,176.03,175.96,3.95772013]
[1748333537232,169.4,176.03,175.96,0.68812894]
[1748333537533,0.03650001,176.01,175.98,0.03713169]
[1748333537736,5.6804,175.99,175.98,0.03713169]
[1748333539129,5.681,175.97,175.96,0.68812894]
[1748333539729,5.6817,175.95,175.94,9.119e-05]
[1748333539931,5.04173083,175.96,175.93,9.68706892]
[1748333540129,5.04173083,175.96,175.93,9.7288214]
[1748333540130,5.682,175.94,175.93,9.7288214]
[1748333541234,5.682,175.94,175.93,0.04175248]
[1748333541633,5.6826,175.92,175.91,0.92118673]
[1748333541830,5.07786825,175.96,175.86,11.62976892]
[1748333542131,5.04173083,175.96,175.87,5.6841]
[1748333542530,5.04173083,175.96,175.86,9.68706892]
[1748333542728,0.03855602,175.93,175.89,0.04294328]
[1748333543030,5.6827,175.92,175.89,0.04294328]
[1748333543226,0.03855602,175.93,175.89,0.04294328]
[1748333543426,5.6827,175.92,175.89,0.04294328]
[1748333543626,0.03855602,175.93,175.89,0.04294328]
[1748333543932,5.6829,175.92,175.89,0.04294328]
[1748333544525,5.683,175.91,175.89,0.04294328]
[1748333545427,5.6833,175.9,175.89,0.04294328]
[1748333545632,0.03855602,175.93,175.89,0.04294328]
[1748333546630,5.683,175.91,175.89,0.04294328]
[1748333547638,5.6827,175.92,175.89,0.04294328]
[1748333547827,0.03855602,175.93,175.89,0.04294328]
[1748333548339,5.6833,175.9,175.89,0.04294328]
[1748333549432,0.03855602,175.93,175.89,0.04294328]
[1748333550432,5.6833,175.9,175.89,0.04294328]
[1748333560238,0.03855602,175.93,175.89,0.04294328]
[1748333561342,5.6833,175.9,175.89,0.04294328]
[1748333563645,5.6846,175.86,175.85,1.9668]
[1748333564844,5.72454321,175.87,175.85,1.9668]
[1748333565541,5.6846,175.86,175.85,1.9668]
[1748333565941,0.04014321,175.87,175.85,1.9668]
[1748333566348,0.04014321,175.87,175.84,0.0401786]
[1748333566744,5.6848,175.86,175.84,0.0401786]
[1748333567247,0.04014321,175.87,175.84,0.0401786]
[1748333568254,5.6846,175.86,175.84,0.0401786]
[1748333568452,0.04014321,175.87,175.84,0.0401786]
[1748333568953,5.6848,175.86,175.84,0.0401786]
[1748333569153,0.04014321,175.87,175.84,0.0401786]
[1748333569758,5.6849,175.86,175.84,0.0401786]
[1748333570047,0.04014321,175.87,175.84,0.0401786]
[1748333570257,5.6838,175.89,175.84,0.0401786]
[1748333570462,165.28,175.96,175.84,0.0401786]
[1748333570755,5.6832,175.91,175.81,1.8917]
[1748333570955,165.28,175.96,175.81,1.8917]
[1748333571156,0.03791652,175.9,175.87,5.72698521]
[1748333571353,5.72121652,175.9,175.87,5.72698521]
[1748333571857,5.6836,175.89,175.87,5.72698521]
[1748333572455,5.6836,175.89,175.87,0.04298521]
[1748333572957,5.6839,175.88,175.87,0.04298521]
[1748333574867,0.03791652,175.9,175.87,0.04298521]
[1748333575758,5.6839,175.88,175.87,0.04298521]
[1748333578859,5.6837,175.89,175.87,0.04298521]
[1748333579357,0.03791652,175.9,175.87,0.04298521]
[1748333579558,5.6839,175.88,175.87,0.04298521]
[1748333580668,0.03791652,175.9,175.87,0.04298521]
[1748333581267,5.6838,175.89,175.87,0.04298521]
[1748333582065,5.6838,175.89,175.87,5.72718521]
[1748333582260,0.03791652,175.9,175.87,0.04298521]
[1748333582461,0.03791652,175.9,175.87,5.72708521]
[1748333582767,5.72141652,175.9,175.87,5.72708521]
[1748333582961,0.03791652,175.9,175.87,5.72708521]
[1748333583766,5.72131652,175.9,175.87,5.72708521]
[1748333584167,5.6837,175.89,175.87,5.72708521]
[1748333585069,5.6837,175.89,175.87,0.04298521]
[1748333585263,5.6839,175.88,175.87,0.04298521]
[1748333586571,5.72141652,175.9,175.87,0.04298521]
[1748333586774,0.03791652,175.9,175.87,0.04298521]
[1748333586968,10.49072361,176.0,175.88,165.28]
[1748333587265,5.6819,175.95,175.92,5.6824]
[1748333587466,10.49072361,176.0,175.9,107.98]
[1748333587967,5.72021286,175.96,175.92,5.72317349]
[1748333588165,0.03871286,175.96,175.92,5.72317349]
[1748333588370,5.6817,175.95,175.92,5.72317349]
[1748333588570,0.03871286,175.96,175.92,0.04067349]
[1748333588970,5.682,175.94,175.92,0.04067349]
[1748333589268,0.03871286,175.96,175.92,0.04067349]
[1748333589966,5.682,175.94,175.92,0.04067349]
[1748333590971,5.6823,175.93,175.92,0.04067349]
[1748333591275,0.03871286,175.96,175.92,0.04067349]
[1748333592882,5.6823,175.93,175.92,0.04067349]
[1748333593369,5.6821,175.94,175.92,0.04067349]
[1748333593979,5.6818,175.95,175.92,5.72327349]
[1748333594181,0.03871286,175.96,175.92,0.04067349]
[1748333594782,6.99381574,176.04,175.92,0.04067349]
[1748333595077,5.6795,176.02,175.99,5.6803]
[1748333595281,6.99381574,176.04,175.97,107.96]
[1748333595476,6.99381574,176.04,175.98,3.951]
[1748333595676,0.0384217,176.03,175.99,0.03934097]
[1748333596479,10.49072361,176.06,175.99,164.73934097]
[1748333597079,10.49072361,176.06,176.0,272.66]
[1748333597477,0.03843259,176.05,176.0,272.66]
[1748333597678,7.08353083,176.13,176.01,0.03859105]
[1748333597884,5.6766,176.11,176.0,277.70173083]
[1748333598079,164.7,176.16,176.0,277.70173083]
[1748333598475,10.49072361,176.17,176.0,277.70173083]
[1748333598681,0.04214825,176.1,176.07,0.03892741]
[1748333598882,0.03868047,176.1,176.08,272.6]
[1748333599182,10.49072361,176.17,176.08,272.6]
[1748333599481,5.6766,176.11,176.08,272.6]
[1748333599684,15.53245444,176.17,176.08,272.6]
[1748333599878,5.04173083,176.14,176.08,107.94]
[1748333600084,5.6762,176.12,176.11,0.0377477]
[1748333600279,0.04000384,176.13,176.1,0.03580947]
[1748333600481,0.04000384,176.13,176.1,0.04288292]
[1748333600785,5.6765,176.11,176.1,0.04288292]
[1748333602481,5.04173083,176.12,176.04,164.62]
[1748333602786,5.04173083,176.12,176.05,107.9]
[1748333603386,0.03836834,176.1,176.07,0.0419906]
[1748333603992,5.6775,176.08,176.07,0.0419906]
[1748333605181,5.6784,176.05,176.04,164.62]
[1748333605388,5.04173083,176.09,176.03,2.071]
[1748333605887,5.6787,176.04,176.03,2.071]
[1748333606089,5.04173083,176.09,176.02,109.9479]
[1748333606290,0.04096675,176.07,176.04,0.04326922]
[1748333606590,5.04173083,176.06,175.98,107.9]
[1748333606887,5.04173083,176.06,175.97,168.6128]
[1748333607182,5.04173083,176.03,175.97,168.6128]
[1748333607387,5.6803,176.0,175.95,5.6814]
[1748333607585,0.04066572,176.02,175.98,0.0409879]
[1748333607787,0.040616,176.02,175.98,0.03834594]
[1748333608089,5.04173083,176.0,175.93,3.8544]
[1748333608981,0.04325423,175.98,175.95,0.04096214]
[1748333610094,5.6812,175.97,175.95,0.04096214]
[1748333610290,0.04325423,175.98,175.95,0.04096214]
[1748333611591,0.04325423,175.98,175.97,5.681]
[1748333611894,0.04325423,175.98,175.95,0.04096214]
[1748333612193,0.04325423,175.98,175.97,5.681]
[1748333612584,0.04325423,175.98,175.95,0.04096214]
[1748333613392,0.04325423,175.98,175.95,5.72266214]
[1748333614001,0.04325423,175.98,175.96,5.6812]
[1748333614598,0.04325423,175.98,175.97,5.681]
[1748333616697,1.9481,176.08,175.96,168.5922]
[1748333616996,1.9481,176.08,175.97,1.9691]
[1748333617202,1.9481,176.08,176.02,5.6791]
[1748333617506,0.03819241,176.07,176.03,0.03999064]
[1748333617701,5.6784,176.06,176.03,0.03999064]
[1748333618000,0.03819241,176.07,176.03,5.71899064]
[1748333618197,0.03819241,176.07,176.03,0.03999064]
[1748333618702,5.6788,176.04,176.03,0.03999064]
[1748333619205,0.03819241,176.07,176.03,0.03999064]
[1748333619501,5.6784,176.06,176.03,0.03999064]
[1748333619809,0.03819241,176.07,176.04,5.6788]
[1748333620003,0.03819241,176.07,176.03,0.03999064]
[1748333620203,0.03819241,176.07,176.03,5.71889064]
[1748333620400,5.71619241,176.07,176.03,5.71889064]
[1748333621105,5.71619241,176.07,176.03,0.03999064]
[1748333621403,5.6782,176.06,176.03,0.03999064]
[1748333622107,0.03819241,176.07,176.03,0.03999064]
[1748333622707,5.6783,176.06,176.03,0.03999064]
[1748333623904,5.6785,176.05,176.03,0.03999064]
[1748333626312,5.6782,176.06,176.03,5.71899064]
[1748333626806,0.03819241,176.07,176.03,5.71899064]
[1748333627111,5.6782,176.06,176.03,5.71899064]
[1748333627411,5.6785,176.05,176.03,0.03999064]
[1748333628712,0.03819241,176.07,176.03,0.03999064]
[1748333629209,5.6788,176.04,176.03,0.03999064]
[1748333631314,5.6785,176.05,176.03,0.03999064]
[1748333633313,5.6788,176.04,176.03,0.03999064]
[1748333633518,0.03819241,176.07,176.03,0.03999064]
[1748333633917,5.6788,176.04,176.03,0.03999064]
[1748333634121,0.03819241,176.07,176.03,0.03999064]
[1748333634517,5.6786,176.05,176.03,0.03999064]
[1748333634718,0.03819241,176.07,176.03,0.03999064]
[1748333634922,5.6788,176.04,176.03,0.03999064]
[1748333638523,5.6801,176.0,175.96,277.2212]
[1748333638720,5.6801,176.0,175.96,5.6812]
[1748333639628,5.6801,176.0,175.96,0.04014832]
[1748333639629,0.03662336,176.0,175.96,0.04014832]
[1748333640127,5.6806,175.99,175.96,0.04014832]
[1748333640915,0.03662336,176.0,175.96,0.04014832]
[1748333641517,5.681,175.97,175.96,0.04014832]
[1748333644227,5.6808,175.98,175.96,0.04014832]
[1748333644522,0.03662336,176.0,175.96,0.04014832]
[1748333644729,5.6809,175.98,175.96,0.04014832]
[1748333645031,0.03662336,176.0,175.96,0.04014832]
[1748333645234,5.681,175.98,175.96,0.04014832]
[1748333645829,0.03662336,176.0,175.96,0.04014832]
[1748333646430,5.681,175.97,175.96,0.04014832]
[1748333662840,5.68,175.97,175.83,0.45986674]
[1748333663146,5.05112688,175.95,175.85,6.03020617]
[1748333663347,162.54,175.94,175.85,6.03020617]
[1748333663549,162.54,175.94,175.86,5.6844]
[1748333663747,162.54,175.94,175.85,0.34540617]
[1748333663949,5.6835,175.9,175.88,0.0382586]
[1748333666143,5.72355623,175.91,175.88,0.0382586]
[1748333666344,0.04045623,175.91,175.88,0.0382586]
[1748333668452,0.04045623,175.91,175.9,5.6833]
[1748333669051,0.04045623,175.91,175.89,5.6835]
[1748333669253,0.04045623,175.91,175.88,0.0382586]
[1748333670557,5.6835,175.9,175.88,0.0382586]
[1748333670947,5.6836,175.89,175.88,0.0382586]
[1748333671851,5.6834,175.9,175.88,0.0382586]
[1748333672048,0.04045623,175.91,175.88,0.0382586]
[1748333672349,5.6833,175.9,175.88,0.0382586]
[1748333673654,5.6836,175.89,175.88,0.0382586]
[1748333682961,0.04045623,175.91,175.81,0.34540617]
[1748333683155,5.05112688,175.89,175.82,5.6858]
[1748333683871,5.6851,175.85,175.84,0.04004271]
[1748333692168,5.6847,175.86,175.84,0.04004271]
[1748333692366,0.03590738,175.87,175.84,0.04004271]
[1748333692866,0.03590738,175.87,175.85,5.6846]
[1748333693062,0.03590738,175.87,175.84,0.04004271]
[1748333693261,5.72030738,175.87,175.84,0.04004271]
[1748333693463,0.03590738,175.87,175.84,5.72504271]
[1748333694671,5.6846,175.86,175.84,0.04004271]
[1748333694872,0.03590738,175.87,175.84,0.04004271]
[1748333695273,5.6849,175.85,175.84,0.04004271]
[1748333701770,5.6847,175.86,175.84,0.04004271]
[1748333702163,0.03590738,175.87,175.84,0.04004271]
[1748333702671,0.03590738,175.87,175.84,5.72514271]
[1748333703068,0.03590738,175.87,175.84,0.04004271]
[1748333703776,0.03590738,175.87,175.85,5.6849]
[1748333703974,0.03590738,175.87,175.84,0.04004271]
[1748333704374,0.03590738,175.87,175.86,5.6846]
[1748333704573,0.03590738,175.87,175.84,0.04004271]
[1748333705776,0.03590738,175.87,175.86,5.6846]
[1748333710578,7.38e-06,175.87,175.86,5.6846]
[1748333711077,5.6818,175.95,175.86,5.6846]
[1748333711278,161.1,175.98,175.86,5.05112688]
[1748333711779,5.6816,175.96,175.86,5.05112688]
[1748333712182,0.03615422,175.93,175.89,0.04251258]
[1748333712385,0.03615422,175.93,175.9,5.683]
[1748333713292,5.71855422,175.93,175.9,5.683]
[1748333713493,0.03615422,175.93,175.89,108.04251258]
[1748333713793,5.71865422,175.93,175.89,108.04251258]
[1748333713992,0.03615422,175.93,175.89,113.72601258]
[1748333714292,0.03615422,175.93,175.89,108.04251258]
[1748333714496,5.71875422,175.93,175.9,5.683]
[1748333714792,5.71875422,175.93,175.89,108.04251258]
[1748333715094,0.03615422,175.93,175.91,5.6829]
[1748333715593,0.03615422,175.93,175.9,5.6832]
[1748333715791,0.03615422,175.93,175.89,108.04251258]
[1748333716693,0.03615422,175.93,175.9,1.9028]
[1748333717094,0.03615422,175.93,175.91,5.6828]
[1748333718199,0.03615422,175.93,175.9,7.586]
[1748333718501,0.03615422,175.93,175.9,1.9028]
[1748333718894,0.03615422,175.93,175.89,0.04251258]
[1748333719687,5.6833,175.9,175.89,0.04251258]
[1748333722593,0.03615422,175.93,175.89,0.04251258]
[1748333722994,5.71865422,175.93,175.9,5.6831]
[1748333723499,0.03615422,175.93,175.89,0.04251258]
[1748333724001,0.03615422,175.93,175.92,5.6826]
[1748333724706,0.03615422,175.93,175.89,0.04251258]
[1748333725299,0.03615422,175.93,175.92,5.6826]
[1748333725899,0.03615422,175.93,175.89,0.04251258]
[1748333726704,5.71865422,175.93,175.9,5.6832]
[1748333727205,0.03615422,175.93,175.91,5.6829]
[1748333727907,0.03615422,175.93,175.9,5.6832]
[1748333728406,0.03615422,175.93,175.91,5.683]
[1748333728600,0.03615422,175.93,175.89,0.04251258]
[1748333729304,5.6833,175.9,175.89,0.04251258]
[1748333731205,0.03615422,175.93,175.89,5.72601258]
[1748333732111,5.6829,175.92,175.89,5.72601258]
[1748333733006,5.6829,175.92,175.89,0.04251258]
[1748333733207,5.6829,175.92,175.9,5.6832]
[1748333733408,5.71855422,175.93,175.9,5.6832]
[1748333733712,0.03615422,175.93,175.91,5.6828]
[1748333733908,5.6827,175.92,175.89,0.04251258]
[1748333734114,0.03615422,175.93,175.9,5.6831]
[1748333734305,0.03615422,175.93,175.89,0.04251258]
[1748333734608,0.03615422,175.93,175.91,5.6827]
[1748333734810,0.03615422,175.93,175.89,0.04251258]
[1748333735313,0.03615422,175.93,175.91,5.6828]
[1748333735915,0.03615422,175.93,175.92,5.6826]
[1748333736113,0.03615422,175.93,175.89,0.04251258]
[1748333737819,0.03615422,175.93,175.92,5.6826]
[1748333742420,0.03615422,175.93,175.89,0.04251258]
[1748333743218,5.71855422,175.93,175.9,5.683]
[1748333743522,5.71855422,175.93,175.89,0.04251258]
[1748333743720,0.03615422,175.93,175.91,5.6828]
[1748333745721,0.03615422,175.93,175.92,5.6826]
[1748333745916,0.03615422,175.93,175.89,0.04251258]
[1748333746117,0.03615422,175.93,175.9,5.6832]
[1748333746422,5.71865422,175.93,175.89,0.04251258]
[1748333746823,0.03615422,175.93,175.89,0.04251258]
[1748333747323,0.03615422,175.93,175.92,5.6826]
[1748333749327,0.03615422,175.93,175.89,0.04251258]
[1748333749328,0.03615422,175.93,175.91,5.6829]
[1748333750222,0.03615422,175.93,175.89,0.04251258]
[1748333750921,5.422e-05,175.93,175.92,5.6826]
[1748333758933,5.422e-05,175.93,175.92,6.03412335]
[1748333762337,168.41072361,176.11,175.92,11.71412335]
[1748333762636,2.0529,176.1,175.95,5.05112688]
[1748333762834,5.6781,176.06,175.96,265.86]
[1748333763031,2.0529,176.1,176.02,5.6792]
[1748333763338,5.6789,176.04,176.03,0.03612283]
[1748333763530,0.04205774,176.07,176.03,0.03612283]
[1748333764332,0.04205774,176.07,176.05,5.6782]
[1748333764534,0.04205774,176.07,176.03,0.03612283]
[1748333765542,0.04205774,176.07,176.05,5.6783]
[1748333766240,0.04205774,176.07,176.03,0.03612283]
[1748333767239,5.6781,176.06,176.03,5.71502283]
[1748333767533,0.04205774,176.07,176.03,0.03612283]
[1748333768034,5.72005774,176.07,176.03,0.03612283]
[1748333768241,0.04205774,176.07,176.03,0.03612283]
[1748333768639,0.04205774,176.07,176.05,5.6782]
[1748333769144,0.04205774,176.07,176.03,0.03612283]
[1748333772544,5.6783,176.06,176.03,0.03612283]
[1748333772938,5.6783,176.06,176.03,5.71512283]
[1748333773138,5.6785,176.05,176.03,0.03612283]
[1748333773451,0.04205774,176.07,176.06,5.6781]
[1748333773640,0.04205774,176.07,176.03,0.03612283]
[1748333774045,0.04205774,176.07,176.06,5.6781]
[1748333774252,0.04205774,176.07,176.03,0.03612283]
[1748333775350,0.04205774,176.07,176.04,5.6785]
[1748333775541,0.04205774,176.07,176.03,0.03612283]
[1748333776749,0.04205774,176.07,176.06,5.6781]
[1748333777247,0.04205774,176.07,176.05,5.6783]
[1748333777449,0.04205774,176.07,176.03,0.03612283]
[1748333777748,0.04205774,176.07,176.05,5.6782]
[1748333778050,0.04205774,176.07,176.03,0.03612283]
[1748333778547,0.04205774,176.07,176.05,5.6782]
[1748333778745,0.04205774,176.07,176.03,0.03612283]
[1748333779661,0.04205774,176.07,176.06,5.6781]
[1748333783954,0.04205774,176.07,176.05,5.6783]
[1748333784253,0.04205774,176.07,176.03,107.89612283]
[1748333785053,0.04205774,176.07,176.06,5.6781]
[1748333785351,0.04205774,176.07,176.03,107.89612283]
[1748333785553,0.04205774,176.07,176.05,5.6782]
[1748333785747,0.04205774,176.07,176.03,107.89612283]
[1748333786155,0.04205774,176.07,176.06,5.6781]
[1748333786351,0.04205774,176.07,176.03,107.89612283]
[1748333786655,0.04205774,176.07,176.05,5.6784]
[1748333787155,0.04205774,176.07,176.03,107.89612283]
[1748333787457,0.04205774,176.07,176.03,0.03612283]
[1748333787950,5.6784,176.06,176.03,5.71492283]
[1748333788151,0.04205774,176.07,176.03,0.03612283]
[1748333790045,5.6787,176.05,176.03,0.03612283]
[1748333790254,0.04205774,176.07,176.03,0.03612283]
[1748333790653,5.6787,176.05,176.03,0.03612283]
[1748333791161,5.6788,176.04,176.03,0.03612283]
[1748333791958,5.6786,176.05,176.03,0.03612283]
[1748333794865,5.6788,176.04,176.03,0.03612283]
[1748333796570,5.6785,176.05,176.03,0.03612283]